lending/lending_fUSD_20240807
["ID","MTS","AMOUNT","RATE_DAILY","PERIOD"]
[334367121,1722995696303,-500.0,0.00010993,2]
[334367122,1722995696312,-500.0,0.00010993,2]
[334367123,1722995696330,-500.0,0.00010993,2]
[334367124,1722995696340,-500.0,0.00010993,2]
[334367125,1722995696351,-500.0,0.00010993,2]
[334367126,1722995696360,-500.0,0.00010993,2]
[334367127,1722995696370,-500.0,0.00010993,2]
[334367128,1722995696379,-386.74078169,0.00010993,2]
[334367129,1722995696388,-150.0,0.00010994,2]
[334367130,1722995696398,-13317.888536,0.00010994,2]
[334367131,1722995696408,-13317.888536,0.00010994,2]
[334367132,1722995696417,-13317.888536,0.00010994,2]
[334367133,1722995696427,-13317.888536,0.00010994,2]
[334367134,1722995696436,-13317.888536,0.00010994,2]
[334367135,1722995696446,-13317.888536,0.00010994,2]
[334367136,1722995696455,-13317.888536,0.00010994,2]
[334367137,1722995696465,-185.621066,0.00010994,2]
[334367138,1722995696475,-185.621066,0.00010994,2]
[334367139,1722995696484,-185.621066,0.00010994,2]
[334367140,1722995696493,-185.621066,0.00010994,2]
[334367141,1722995696503,-185.621066,0.00010994,2]
[334367142,1722995696513,-185.621066,0.00010994,2]
[334367143,1722995696522,-185.621066,0.00010994,2]
[334367144,1722995696532,-3569.435686,0.00010994,2]
[334367145,1722995696541,-3569.435686,0.00010994,2]
[334367146,1722995696551,-3569.435686,0.00010994,2]
[334367147,1722995696561,-3569.435686,0.00010994,2]
[334367148,1722995696570,-3569.435686,0.00010994,2]
[334367149,1722995696580,-3569.435686,0.00010994,2]
[334367150,1722995696590,-5950.71206,0.00010994,2]
[334367151,1722995696599,-5950.71206,0.00010994,2]
[334367152,1722995696609,-5950.71206,0.00010994,2]
[334367153,1722995696619,-5950.71206,0.00010994,2]
[334367154,1722995696630,-5950.71206,0.00010994,2]
[334367155,1722995696640,-5950.71206,0.00010994,2]
[334367156,1722995696649,-3569.435686,0.00010994,2]
[334367157,1722995696659,-5950.71206,0.00010994,2]
[334367158,1722995696668,-3359.97568238,0.00010998,2]
[334367159,1722995696678,-60296.35372344,0.00010999,2]
[334367160,1722995696688,-150.0,0.00010999,2]
[334367161,1722995696697,-500.0,0.00011,5]
[334367162,1722995696707,-3436053.94479901,0.00011,2]
[334367163,1722995696716,-682656.69151102,0.00011,2]
[334367164,1722995696725,-262614.08558043,0.00011,2]
[334367165,1722995696735,-298099.98165378,0.00011,2]
[334367166,1722995697180,-19978.04823752,0.00011,2]
[334367167,1722995697190,-127556.23016344,0.00011,2]
[334367168,1722995697202,-228049.16456603,0.00011,2]
[334367169,1722995697268,-4509.7,0.00010958,2]
[334367170,1722995697281,-530.69716156,0.00010958,2]
[334367171,1722995697294,-1400.23603358,0.00010958,2]
[334367172,1722995697582,-1546.83945678,0.00010958,2]
[334367173,1722995697595,-322.50000001,0.00010958,2]
[334367174,1722995697611,-1072.49734807,0.00010958,2]
[334367175,1722995697623,-585.77,0.00010958,2]
[334367176,1722995697634,-965.94,0.00010958,2]
[334367177,1722995697645,-1578.93643702,0.00010958,2]
[334367178,1722995697658,-1050.1,0.00010958,2]
[334367179,1722995697671,-184.29356298,0.00010958,2]
[334367180,1722995697682,-146.84729191,0.00010958,2]
[334367181,1722995697694,-353.15270809,0.00010958,2]
[334367182,1722995697704,-272.46664643,0.00010958,2]
[334367183,1722995698387,-319.8481181,0.00010841,2]
[334367184,1722995698398,-799.68335357,0.00010958,2]
[334367185,1722995698407,-1914.38,0.00010958,2]
[334367186,1722995698417,-730.28,0.00010958,2]
[334367187,1722995698427,-882.03,0.00010958,2]
[334367188,1722995698437,-792.85,0.00010958,2]
[334367189,1722995698446,-585.77,0.00010958,2]
[334367190,1722995698455,-500.0,0.00010958,2]
[334367191,1722995698465,-965.94,0.00010958,2]
[334367192,1722995698474,-649.51702983,0.00010958,2]
[334367193,1722995698486,-1264.86297017,0.00010958,2]
[334367194,1722995698495,-1072.15,0.00010958,2]
[334367195,1722995698505,-4205.98702984,0.00010958,2]
[334367196,1722995698517,-1098.75051472,0.00010958,2]
[334367197,1722995698528,-1016.1,0.00010958,2]
[334367198,1722995698539,-292.45364034,0.00010958,2]
[334367199,1722995698551,-267.06272339,0.00010958,2]
[334367200,1722995698562,-2502.11609171,0.00010958,2]
[334367201,1722995698571,-2813.33,0.00010958,2]
[334367202,1722995698580,-882.03,0.00010958,2]
[334367203,1722995698590,-730.28,0.00010958,2]
[334367204,1722995698600,-792.85,0.00010958,2]
[334367205,1722995698610,-253.20630829,0.00010958,2]
[334367206,1722995698623,-246.79369171,0.00010958,2]
[334367207,1722995698633,-53.2923425,0.00010958,2]
[334367208,1722995698645,-9329.1776575,0.00010958,2]
[334367209,1722995698655,-585.77,0.00010958,2]
[334367210,1722995698664,-965.94,0.00010958,2]
[334367211,1722995698674,-792.85,0.00010958,2]
[334367212,1722995698683,-2813.33,0.00010958,2]
[334367213,1722995698693,-1914.38,0.00010958,2]
[334367214,1722995698702,-1072.15,0.00010958,2]
[334367215,1722995698710,-730.34843278,0.00010958,2]
[334367216,1722995698721,-500.0,0.00010958,2]
[334367217,1722995698730,-500.0,0.00010958,2]
[334367218,1722995698739,-4234.22255565,0.00010958,2]
[334367219,1722995698838,-1400.82469705,0.00010958,2]
[334367220,1722995698850,-277.95431701,0.00010958,2]
[334367221,1722995698861,-2786.62573317,0.00010958,2]
[334367222,1722995699305,-682.84269712,0.00010958,2]
[334367223,1722995699315,-792.85,0.00010958,2]
[334367224,1722995699325,-585.77,0.00010958,2]
[334367225,1722995699335,-966.16892006,0.00010958,2]
[334367226,1722995699345,-1175.26508261,0.00010958,2]
[334367227,1722995699357,-794.19253862,0.00010958,2]
[334367228,1722995699368,-680.3546727,0.00010958,2]
[334367229,1722995699379,-163.51770607,0.00010958,2]
[334367230,1722995699389,-601.30729393,0.00010958,2]
[334367231,1722995699401,-280.72270607,0.00010958,2]
[334367232,1722995699411,-1072.15,0.00010958,2]
[334367233,1722995699420,-500.0,0.00010958,2]
[334367234,1722995699430,-528.82408754,0.00010958,2]
[334367235,1722995699439,-792.85,0.00010958,2]
[334367236,1722995699448,-556.80187622,0.00010958,2]
[334367237,1722995699460,-28.96812378,0.00010958,2]
[334367238,1722995699469,-476.59831702,0.00010958,2]
[334367239,1722995699994,-319.8481181,0.00010858,2]
[334367240,1722995700003,-1246.7518819,0.00010858,2]
[334367241,1722995700016,-8454.7448,0.00010858,2]
[334367242,1722995700028,-544.1436,0.00010858,2]
[334367243,1722995700039,-740.75220666,0.00010858,2]
[334367244,1722995700181,-13853.47046652,0.00010858,2]
[334367245,1722995700192,-1126.0,0.000109,2]
[334367246,1722995700202,-2336.73168298,0.00010958,2]
[334367247,1722995700212,-1914.38,0.00010958,2]
[334367248,1722995700221,-1072.15,0.00010958,2]
[334367249,1722995700231,-882.03,0.00010958,2]
[334367250,1722995700242,-500.0,0.00010958,2]
[334367251,1722995700253,-585.77,0.00010958,2]
[334367252,1722995700263,-792.85,0.00010958,2]
[334367253,1722995700272,-9382.47,0.00010958,2]
[334367254,1722995700282,-1072.15,0.00010958,2]
[334367255,1722995700292,-882.03,0.00010958,2]
[334367256,1722995700302,-1914.38,0.00010958,2]
[334367257,1722995700313,-500.0,0.00010958,2]
[334367258,1722995700323,-585.77,0.00010958,2]
[334367259,1722995700332,-792.85,0.00010958,2]
[334367260,1722995700342,-9382.47,0.00010958,2]
[334367261,1722995700352,-1072.15,0.00010958,2]
[334367262,1722995700362,-1914.38,0.00010958,2]
[334367263,1722995700372,-500.0,0.00010958,2]
[334367264,1722995700381,-882.03,0.00010958,2]
[334367265,1722995700391,-585.77,0.00010958,2]
[334367266,1722995700400,-792.85,0.00010958,2]
[334367267,1722995700409,-1464.73343415,0.00010958,2]
[334367268,1722995700422,-853.93159,0.00010958,2]
[334367269,1722995700434,-359.31747,0.00010958,2]
[334367270,1722995700446,-6704.48750585,0.00010958,2]
[334367271,1722995700456,-1072.15,0.00010958,2]
[334367272,1722995700466,-1914.38,0.00010958,2]
[334367273,1722995700475,-882.03,0.00010958,2]
[334367274,1722995700485,-585.77,0.00010958,2]
[334367275,1722995700494,-792.85,0.00010958,2]
[334367276,1722995700503,-9382.47,0.00010958,2]
[334367277,1722995700512,-1072.15,0.00010958,2]
[334367278,1722995700522,-1914.38,0.00010958,2]
[334367279,1722995700531,-882.03,0.00010958,2]
[334367280,1722995700541,-500.0,0.00010958,2]
[334367281,1722995700551,-585.77,0.00010958,2]
[334367282,1722995700560,-9382.47,0.00010958,2]
[334367283,1722995700570,-792.85,0.00010958,2]
[334367284,1722995700579,-1072.15,0.00010958,2]
[334367285,1722995700588,-1914.38,0.00010958,2]
[334367286,1722995700598,-882.03,0.00010958,2]
[334367287,1722995700607,-585.77,0.00010958,2]
[334367288,1722995700618,-500.0,0.00010958,2]
[334367289,1722995700627,-792.85,0.00010958,2]
[334367290,1722995700636,-9382.47,0.00010958,2]
[334367291,1722995700651,-1914.38,0.00010958,2]
[334367292,1722995700660,-881.03,0.00010958,2]
[334367293,1722995700670,-882.03,0.00010958,2]
[334367294,1722995700679,-218.63522708,0.00010958,2]
[334367295,1722995700691,-281.36477292,0.00010958,2]
[334367296,1722995700701,-792.85,0.00010958,2]
[334367297,1722995700710,-585.77,0.00010958,2]
[334367298,1722995700720,-1041.24624522,0.00010958,2]
[334367299,1722995700731,-873.13375478,0.00010958,2]
[334367300,1722995700745,-881.03,0.00010958,2]
[334367301,1722995700754,-882.03,0.00010958,2]
[334367302,1722995700763,-500.0,0.00010958,2]
[334367303,1722995700772,-611.44347266,0.00010958,2]
[334367304,1722995700783,-181.40652734,0.00010958,2]
[334367305,1722995700792,-154.56911266,0.00010958,2]
[334367306,1722995700804,-345.70945201,0.00010958,2]
[334367307,1722995700815,-85.49143533,0.00010958,2]
[334367308,1722995700825,-617.37762642,0.00010958,2]
[334367309,1722995728224,-9237.51,9.968e-05,2]
[334367310,1722995728250,-936.0,9.97e-05,2]
[334367311,1722995728272,-2500.0,0.00010758,2]
[334367312,1722995728294,-280.9828,0.00010758,2]
[334367313,1722995728316,-711.75770567,0.00010858,2]
[334367314,1722995728337,-768.10934617,0.00010858,2]
[334367315,1722995728358,-721.32115231,0.00010858,2]
[334367316,1722995728378,-32884.13822148,0.00010899,2]
[334367317,1722995728400,-541.15487126,0.000109,2]
[334367318,1722995728422,-8765.09237358,0.00010958,2]
[334367319,1722995728444,-882.03,0.00010958,2]
[334367320,1722995728466,-500.0,0.00010958,2]
[334367321,1722995728487,-585.77,0.00010958,2]
[334367322,1722995728511,-881.03,0.00010958,2]
[334367323,1722995728532,-9382.47,0.00010958,2]
[334367324,1722995728553,-1914.38,0.00010958,2]
[334367325,1722995728574,-882.03,0.00010958,2]
[334367326,1722995728596,-500.0,0.00010958,2]
[334367327,1722995728617,-585.77,0.00010958,2]
[334367328,1722995728640,-881.03,0.00010958,2]
[334367329,1722995728661,-9382.47,0.00010958,2]
[334367330,1722995728681,-1914.38,0.00010958,2]
[334367331,1722995728702,-882.15475499,0.00010958,2]
[334367332,1722995728723,-585.90489617,0.00010958,2]
[334367333,1722995728744,-881.03,0.00010958,2]
[334367334,1722995728768,-9382.47,0.00010958,2]
[334367335,1722995728789,-1914.38,0.00010958,2]
[334367336,1722995728809,-500.0,0.00010958,2]
[334367337,1722995728830,-881.03,0.00010958,2]
[334367338,1722995728851,-1914.40036509,0.00010958,2]
[334367339,1722995728871,-9382.47,0.00010958,2]
[334367340,1722995728891,-500.0,0.00010958,2]
[334367341,1722995728912,-881.03,0.00010958,2]
[334367342,1722995728932,-9382.47,0.00010958,2]
[334367343,1722995728952,-500.0,0.00010958,2]
[334367344,1722995728972,-881.03,0.00010958,2]
[334367345,1722995728992,-9382.509237,0.00010958,2]
[334367346,1722995729021,-500.0,0.00010958,2]
[334367347,1722995729042,-881.03,0.00010958,2]
[334367348,1722995729063,-500.0,0.00010958,2]
[334367349,1722995729083,-881.03,0.00010958,2]
[334367350,1722995729103,-500.0,0.00010958,2]
[334367351,1722995729123,-881.03,0.00010958,2]
[334367352,1722995729143,-403.63091207,0.00010958,2]
[334367353,1722995729164,-881.03,0.00010958,2]
[334367354,1722995729191,-881.03,0.00010958,2]
[334367355,1722995729213,-881.03,0.00010958,2]
[334367356,1722995729235,-28447.88336421,0.00010958,2]
[334367357,1722995878804,299.2,0.00021589,30]
[334367360,1722996014322,948.24,8.219e-05,2]
[334367361,1722996067545,500.0,0.00021918,30]
[334367362,1722996068218,500.0,0.00021918,30]
[334367363,1722996068822,500.0,0.00021918,30]
[334367364,1722996069039,500.0,0.00021918,30]
[334367365,1722996069501,500.0,0.00021918,30]
[334367366,1722996069964,500.0,0.00021918,30]
[334367367,1722996070476,500.0,0.00021918,30]
[334367368,1722996070921,500.0,0.00021918,30]
[334367369,1722996071408,500.0,0.00021918,30]
[334367370,1722996071867,500.0,0.00021918,30]
[334367371,1722996072413,510.07647908,0.00021918,30]
[334367372,1722996074802,1826.19961989,8.219e-05,2]
[334367373,1722996081808,821.96836985,8.219e-05,2]
[334367374,1722996083490,227.67484022,8.219e-05,2]
[334367375,1722996083814,2564.58953236,8.219e-05,2]
[334367376,1722996133501,-218.11,9.746e-05,2]
[334367377,1722996133528,-9208.68,9.936e-05,2]
[334367378,1722996133552,-251.2,9.956e-05,2]
[334367379,1722996133576,-300.0,9.961e-05,2]
[334367380,1722996133598,-155.0,9.962e-05,2]
[334367381,1722996133621,-155.11326996,9.962e-05,2]
[334367382,1722996133643,-526.34,9.964e-05,2]
[334367383,1722996133666,-17443.54173004,9.964e-05,2]
[334367384,1722996177493,227.67484022,8.219e-05,2]
[334367389,1722996241821,17063.37466828,8.219e-05,2]
[334367390,1722996251818,1472.1012826,8.219e-05,2]
[334367391,1722996278497,227.67484022,8.219e-05,2]
[334367393,1722996308507,227.67484022,8.219e-05,2]
[334367400,1722996429898,274.26,0.00021589,30]
[334367401,1722996432335,11194.61036172,8.219e-05,2]
[334367435,1722996463134,2336.67925464,0.00024658,30]
[334367441,1722996527098,900.82,8.219e-05,2]
[334367587,1722996632460,-218.11,9.626e-05,2]
[334367588,1722996632470,-173.84,9.754e-05,2]
[334367589,1722996632479,-280.8687921,9.803e-05,2]
[334367590,1722996632494,-122.1712079,9.803e-05,2]
[334367591,1722996632504,-278.57,9.849e-05,2]
[334367592,1722996632513,-200.0,9.867e-05,2]
[334367593,1722996632522,-300.0,9.897e-05,2]
[334367594,1722996632532,-300.0,9.897e-05,2]
[334367595,1722996632541,-11594.88816834,9.898e-05,2]
[334367596,1722996632550,-182.85,9.899e-05,2]
[334367597,1722996632559,-500.0,9.899e-05,2]
[334367598,1722996632570,-8728.99,9.906e-05,2]
[334367599,1722996632579,-5753.6,9.909e-05,2]
[334367600,1722996632589,-483.13,9.912e-05,2]
[334367601,1722996632598,-18591.778522,9.912e-05,2]
[334367602,1722996632607,-3023.30694006,9.922e-05,2]
[334367626,1722996638055,-1100.0,9.922e-05,2]
[334367627,1722996638067,-290.08119832,9.922e-05,2]
[334367628,1722996638079,-10699.05035355,9.922e-05,2]
[334367629,1722996638090,-497.25035869,9.922e-05,2]
[334367630,1722996638102,-8290.31114938,9.922e-05,2]
[334367631,1722996638111,-170.32,9.966e-05,2]
[334367632,1722996638120,-150.0,0.00010179,2]
[334367633,1722996638130,-1251.11516742,0.0001018,2]
[334367634,1722996638140,-1251.11516742,0.0001018,2]
[334367635,1722996638150,-900.82,0.00010464,2]
[334367636,1722996638160,-1205.0,0.000107,2]
[334367637,1722996638170,-1841.14,0.00010704,2]
[334367638,1722996638180,-622.0,0.00010704,2]
[334367639,1722996638191,-1583.0,0.00010704,2]
[334367640,1722996638201,-1045.034,0.00010704,2]
[334367641,1722996638211,-446.0,0.00010704,2]
[334367642,1722996638221,-343.35451578,0.00010704,2]
[334367643,1722996638234,-207.64548422,0.00010704,2]
[334367644,1722996638244,-1693.08,0.00010704,2]
[334367645,1722996638254,-1151.0,0.00010704,2]
[334367646,1722996638264,-2261.97360328,0.00010704,2]
[334367647,1722996638276,-1027.02639672,0.00010704,2]
[334367648,1722996638287,-1000.0,0.00010758,2]
[334367649,1722996638297,-6329.1307,0.00010758,2]
[334367650,1722996638307,-868.87073684,0.00010758,2]
[334367651,1722996638316,-3524.56880575,0.00010758,2]
[334367652,1722996638328,-1496.80069425,0.00010758,2]
[334367653,1722996638338,-4185.193,0.00010758,2]
[334367654,1722996638348,-999.8637,0.00010758,2]
[334367655,1722996638358,-1000.0,0.000108,2]
[334367656,1722996638369,-12302.52194472,0.00010858,2]
[334367657,1722996638378,-7619.66897428,0.00010858,2]
[334367658,1722996638390,-22243.24876,0.00010858,2]
[334367659,1722996638432,-8015.83152111,0.00010858,2]
[334367660,1722996638447,-1254.48307782,0.00010858,2]
[334367661,1722996638458,-6078.02459945,0.00010858,2]
[334367662,1722996638470,-420.586567,0.00010858,2]
[334367663,1722996638484,-547.8,0.00010858,2]
[334367664,1722996638927,-115.22143672,0.00010858,2]
[334367783,1722996642836,-1304.52211533,0.00010858,2]
[334367787,1722996642847,-274.395,0.00010858,2]
[334367796,1722996643094,-332.89732578,0.00010858,2]
[334367797,1722996643106,-73325.23097673,0.00010858,2]
[334367838,1722996644124,-3844.73454262,0.00010858,2]
[334367840,1722996644136,-3983.14845078,0.00010858,2]
[334367842,1722996644147,-2741.4657775,0.00010858,2]
[334367854,1722996644266,-1820.01041548,0.00010858,2]
[334367857,1722996644277,-2470.83863807,0.00010858,2]
[334367859,1722996644288,-378.03492885,0.00010858,2]
[334368041,1722996646341,-2746.54750109,0.00010858,2]
[334368043,1722996646353,-1182.4825974,0.00010858,2]
[334368045,1722996646365,-946.56424632,0.00010858,2]
[334368137,1722996797887,500.0,0.00024932,120]
[334368138,1722996800614,201.778926,0.00024999,120]
[334368141,1722996908174,251.4,0.00021589,30]
[334368149,1722997010567,1183.22,8.219e-05,2]
[334368150,1722997015493,150.0,0.00024658,30]
[334368153,1722997155440,3100.0,9e-05,2]
[334368155,1722997171302,182.85,9.165e-05,2]
[334368156,1722997202828,500.0,9.187e-05,2]
[334368158,1722997242115,759.97000096,9.187e-05,2]
[334368159,1722997244583,227.67484022,9.187e-05,2]
[334368189,1722997337206,159.08057685,9.187e-05,2]
[334368190,1722997337602,8207.64,9.114e-05,2]
[334368193,1722997360603,227.67484022,9.187e-05,2]
[334368194,1722997365288,250.0,9.18e-05,2]
[334368197,1722997403628,500.0,0.00024932,120]
[334368198,1722997407972,200.0,0.00024999,120]
[334368202,1722997418178,719.907989,0.000246,30]
[334368204,1722997426641,230.45,0.00021589,30]
[334368205,1722997428855,20158.1368,9.18e-05,2]
[334368207,1722997481826,1173.67,8.219e-05,2]
[334368208,1722997490032,170.32,9.149e-05,2]
[334368212,1722997536284,18000.0,9.5e-05,2]
[334368215,1722997555611,934.1238637,6.94e-05,2]
[334368218,1722997614377,2383.21392471,8.412e-05,2]
[334368229,1722997668018,200.0,9.037e-05,2]
[334368230,1722997668306,1004.3,9.037e-05,2]
[334368234,1722997682813,205.57,9.494e-05,2]
[334368236,1722997696674,1000.0,9.054e-05,2]
[334368243,1722997723889,161.67,9.069e-05,2]
[334368244,1722997724614,154.45,9.069e-05,2]
[334368246,1722997724841,154.45,9.073e-05,2]
[334368247,1722997725073,154.45,9.078e-05,2]
[334368248,1722997725282,154.45,9.082e-05,2]
[334368250,1722997725483,154.45,9.087e-05,2]
[334368251,1722997725684,154.45,9.091e-05,2]
[334368252,1722997725905,154.45,9.096e-05,2]
[334368253,1722997726131,154.45,9.1e-05,2]
[334368254,1722997726329,154.45,9.105e-05,2]
[334368255,1722997726553,154.45,9.11e-05,2]
[334368256,1722997726881,154.45,9.114e-05,2]
[334368302,1722997800241,23900.0,9.103e-05,2]
[334368326,1722997833128,-842.29893,9.581e-05,2]
[334368327,1722997833138,-2701.4194,9.63e-05,2]
[334368328,1722997833147,-225.51,9.68e-05,2]
[334368329,1722997833157,-428.62,9.709e-05,2]
[334368330,1722997833167,-428.62,9.712e-05,2]
[334368331,1722997833177,-428.62,9.715e-05,2]
[334368332,1722997833188,-428.62,9.717e-05,2]
[334368333,1722997833198,-428.62,9.72e-05,2]
[334368334,1722997833208,-299.99,9.72e-05,2]
[334368335,1722997833218,-300.0,9.72e-05,2]
[334368336,1722997833228,-300.0,9.72e-05,2]
[334368337,1722997833238,-182.23,9.721e-05,2]
[334368338,1722997833248,-150.99,9.721e-05,2]
[334368339,1722997833257,-617.89,9.721e-05,2]
[334368340,1722997833267,-150.99,9.721e-05,2]
[334368341,1722997833277,-499.99,9.721e-05,2]
[334368342,1722997833287,-428.62,9.722e-05,2]
[334368343,1722997833297,-428.62,9.725e-05,2]
[334368344,1722997833307,-428.62,9.727e-05,2]
[334368345,1722997833316,-428.62,9.73e-05,2]
[334368346,1722997833329,-428.62,9.732e-05,2]
[334368347,1722997833341,-428.62,9.735e-05,2]
[334368348,1722997833350,-428.62,9.737e-05,2]
[334368349,1722997833359,-428.62,9.74e-05,2]
[334368350,1722997833369,-428.62,9.743e-05,2]
[334368351,1722997833379,-428.62,9.745e-05,2]
[334368352,1722997833389,-428.62,9.748e-05,2]
[334368353,1722997833399,-428.62,9.75e-05,2]
[334368354,1722997833409,-428.62,9.753e-05,2]
[334368355,1722997833418,-428.62,9.755e-05,2]
[334368356,1722997833427,-428.62,9.758e-05,2]
[334368357,1722997833437,-150.0,9.758e-05,2]
[334368358,1722997833446,-150.0,9.838e-05,2]
[334368359,1722997833456,-1550.0,0.0001,2]
[334368360,1722997833466,-9999.99,0.0001,2]
[334368361,1722997833476,-872.43,0.00010055,2]
[334368362,1722997833485,-1268.24192332,0.00010175,2]
[334368363,1722997833494,-1000.0,0.00010186,2]
[334368365,1722997833504,-530.56,0.00010192,2]
[334368366,1722997833513,-426.11,0.00010192,2]
[334368368,1722997833523,-426.11,0.00010192,2]
[334368369,1722997833532,-426.11,0.00010192,2]
[334368370,1722997833542,-426.11,0.00010192,2]
[334368371,1722997833551,-426.11,0.00010192,2]
[334368372,1722997833562,-426.11,0.00010192,2]
[334368373,1722997833574,-426.11,0.00010192,2]
[334368374,1722997833584,-426.11,0.00010192,2]
[334368375,1722997833594,-426.11,0.00010192,2]
[334368376,1722997833604,-426.11,0.00010192,2]
[334368377,1722997833613,-426.11,0.00010192,2]
[334368378,1722997833623,-426.11,0.00010192,2]
[334368379,1722997833633,-425.29,0.00010192,2]
[334368380,1722997833643,-1931.801181,0.00010196,2]
[334368381,1722997833653,-948.24144298,0.00010196,2]
[334368382,1722997833663,-1268.24192332,0.00010375,2]
[334368383,1722997833673,-258.4741,0.0001039,2]
[334368384,1722997833683,-749.37644773,0.00010408,2]
[334368385,1722997833692,-400.218284,0.00010414,2]
[334368386,1722997833702,-192.804647,0.00010414,2]
[334368387,1722997833712,-1173.67,0.00010431,2]
[334368388,1722997833722,-153.506021,0.00010464,2]
[334368389,1722997833732,-6274.51,0.00010475,2]
[334368390,1722997833742,-19999.99,0.00010475,2]
[334368391,1722997833752,-29999.99,0.00010475,2]
[334368392,1722997833762,-19161.1,0.00010475,2]
[334368393,1722997833773,-10500.80814114,0.0001048,2]
[334368394,1722997833782,-32589.5851962,0.0001049,3]
[334368395,1722997833792,-400.218284,0.00010544,2]
[334368396,1722997833802,-2329.4559,0.00010558,2]
[334368397,1722997833812,-429.64,0.00010577,2]
[334368398,1722997833824,-684.86061393,0.00010658,2]
[334368399,1722997833835,-84870.5101,0.00010658,2]
[334368400,1722997833845,-4792.3123,0.00010658,2]
[334368401,1722997833855,-5257.7154,0.00010658,2]
[334368402,1722997833865,-1213.7119,0.00010658,2]
[334368403,1722997833878,-3301.9309,0.00010658,2]
[334368404,1722997833887,-2500.0,0.00010658,2]
[334368405,1722997833898,-400.218284,0.00010674,2]
[334368406,1722997833907,-420.0,0.00010692,2]
[334368407,1722997833917,-420.0,0.00010692,2]
[334368408,1722997833927,-684.86061393,0.00010708,2]
[334368409,1722997833936,-255.0,0.00010734,2]
[334368410,1722997833946,-150.0,0.00010749,2]
[334368411,1722997833957,-150.0,0.00010749,2]
[334368412,1722997833966,-150.52522,0.00010749,2]
[334368413,1722997833976,-684.86061393,0.00010758,2]
[334368414,1722997833987,-500.0,0.00010758,2]
[334368415,1722997833996,-15574.66338317,0.00010758,2]
[334368416,1722997834009,-13394.34796589,0.00010758,2]
[334368417,1722997834021,-1145.9,0.00010758,2]
[334368418,1722997834041,-620.967472,0.00010758,2]
[334368422,1722997837842,3236.9,0.00025,60]
[334368423,1722997838569,-114822.6743256,0.00010758,2]
[334368424,1722997838587,-43.23415334,0.00010758,2]
[334368425,1722997838598,-1000.0,0.00010758,2]
[334368426,1722997838607,-14145.5261,0.00010758,2]
[334368427,1722997838618,-216891.4197831,0.00010758,2]
[334368428,1722997838800,-10853.42793519,0.00010758,2]
[334368429,1722997839007,-16308.38401955,0.00010758,2]
[334368430,1722997839199,-5758.89226232,0.00010758,2]
[334368519,1722997840092,-9418.8009674,0.00010758,2]
[334368522,1722997840102,-259.87627228,0.00010758,2]
[334368525,1722997840112,-928.11401,0.0001076,2]
[334368527,1722997840122,-243.40322561,0.00010775,2]
[334368529,1722997840132,-289.0,0.00010778,2]
[334368531,1722997840141,-5838.0,0.00010778,2]
[334368533,1722997840151,-21743.0,0.00010778,2]
[334368535,1722997840161,-5130.0,0.00010778,2]
[334368537,1722997840170,-1582.0,0.00010778,2]
[334368539,1722997840179,-590.004,0.00010778,2]
[334368541,1722997840188,-1230.976,0.00010778,2]
[334368543,1722997840198,-314.72218928,0.00010796,2]
[334368545,1722997840208,-400.218284,0.00010804,2]
[334368547,1722997840217,-684.86061393,0.00010808,2]
[334368549,1722997840227,-314.72218928,0.00010831,2]
[334368551,1722997840236,-928.11401,0.0001084,2]
[334368553,1722997840246,-27049.6697,0.0001085,2]
[334368555,1722997840255,-62109.77460271,0.0001085,2]
[334368566,1722997840369,-1222.11502604,0.0001085,2]
[334368568,1722997840385,-2689.99555988,0.0001085,2]
[334368571,1722997840405,-257.91622509,0.0001085,2]